[Event "Cairns Cup 2024"]
[Site "Saint Louis"]
[Date "2024.06.20"]
[Round "7.1"]
[White "Tan, Zhongyi"]
[Black "Paehtz, Elisabeth"]
[Result "1-0"]
[ECO "D40"]
[WhiteElo "2540"]
[BlackElo "2457"]
[Annotator "TA"]
[PlyCount "63"]
[EventDate "2024.06.13"]
[EventType "tourn"]
[EventCountry "USA"]
[SourceTitle "playchess.com"]
[Source "ChessBase"]
[SourceQuality "1"]
[TimeControl "40/5400+30:1800+30"]

{[%evp 17,63,4,28,17,76,44,50,33,114,81,72,64,151,139,155,143,158,168,164,152,212,208,222,177,191,174,180,198,190,206,211,189,216,227,282,272,430,426,677,643,621,468,481,477,735,750,851,854]} 1. c4 {[%emt 0:00:00]} c5 {[%emt 0:00:00]} 2. Nc3 {[%emt 0:00:00]} Nc6 {[%emt 0:00:00]} 3. e3 {[%emt 0:00:00]} Nf6 {[%emt 0:00:00]} 4. d4 {[%emt 0:00:00]} d5 {[%emt 0:00:00]} 5. Nf3 {[%emt 0:00:00]} e6 {[%emt 0:00:00]} 6. a3 {[%emt 0:00:00]} a6 {[%emt 0:00:00]} 7. dxc5 {[%emt 0:00:00]} Bxc5 {[%emt 0:00:00]} 8. b4 {[%emt 0:00:00]} Be7 {[%emt 0:00:00]} 9. Bb2 {[%emt 0:00:00]} O-O {[%emt 0:00:00]} 10. Qc2 {[%emt 0:00:00]} Qb6 {[%emt 0:09:47]} (10... dxc4 $11 {remains equal.} 11. Bxc4 b5) 11. Be2 {[%emt 0:00:00][%cal Bf1e2,Be2c4,Bc4d3][%mdl 32]} dxc4 {[%emt 0:02:48]} 12. Bxc4 {[%emt 0:00:00] White is slightly better.} Ng4 {[%emt 0:07:51]} (12... Bd7 $14) 13. Na4 {[%emt 0:01:06]} Qc7 {[%emt 0:15:08]} 14. Bd3 {[%emt 0:00:09]} f5 {[%emt 0:13:32] White leaves nothing to chance now.} (14... h6 $14) 15. h3 $16 {[%emt 0:04:01]} Nf6 {[%emt 0:00:04]} 16. O-O {[%emt 0:00:13] White is more active.} Bd6 {[%emt 0:03:40]} 17. Rfd1 {[%emt 0:01:45]} Bd7 {[%emt 0:08:45]} 18. Nc5 {[%emt 0:04:00]} Rac8 {[%emt 0:11:22]} (18... Ne7 $16 19. Rac1 Bxc5 20. bxc5 Bc6) 19. Rac1 $18 {[%emt 0:00:56][%cal Ba1c1,Bc1c5,Bc5c2][%mdl 32]} Kh8 {[%emt 0:06:50]} 20. Qb3 {[%emt 0:06:11]} Rce8 {[%emt 0:04:51]} 21. Ng5 {[%emt 0:05:36]} Bxc5 {[%emt 0:09:35]} 22. Rxc5 {[%emt 0:00:07]} Bc8 {[%emt 0:00:22]} 23. Rdc1 {[%emt 0:06:45]} Qe7 {[%emt 0:03:08]} 24. Nf3 {[%emt 0:01:40]} Bd7 {[%emt 0:01:30]} 25. a4 $1 {[%emt 0:00:24]} Rc8 {[%emt 0:00:50] [#]} 26. Ba3 $1 {[%emt 0:01:13] aiming for b5. This pair of bishops is nice.} Ne4 {[%emt 0:01:29] [#]} (26... Qf7 $142 27. b5 axb5 28. axb5 (28. Bxb5 Rfd8 $18) 28... Na5) 27. R5c2 $1 {[%emt 0:03:40] And now b5 would win. White is clearly winning.} Rfe8 {[%emt 0:01:25]} (27... Ng5 $142 28. Nxg5 Qxg5) 28. b5 {[%emt 0:02:46]} Na5 {[%emt 0:00:02]} 29. Qa2 {[%emt 0:00:06]} Rxc2 {[%emt 0:00:46]} 30. Rxc2 {[%emt 0:00:05]} ({Don't do} 30. Bxc2 Qf6 31. Bb2 e5 32. Bxe5 (32. Qd5 Be6 $18) 32... Qe7) 30... Qd8 {[%emt 0:00:24]} (30... Qf6 $142 31. Bb2 (31. bxa6 bxa6 32. Bb2 Qe7 $18) (31. Rc7 Qd8 $18) 31... e5) 31. Ne5 {[%emt 0:00:11]} Kg8 {[%emt 0:00:48] Prevents Nf7} 32. Bxe4 {[%emt 0:00:15] Weighted Error Value: White=0.19 (very precise) /Black=0.41.  Mistake:       	---       	Black=7      Inaccurate:     	White=1     	---        OK:         	White=9     	Black=8      Best:        	---       	Black=1      Strong:       	White=2     	---} 1-0

[Event "Cairns Cup 2024"]
[Site "Saint Louis"]
[Date "2024.06.20"]
[Round "7.2"]
[White "Krush, Irina"]
[Black "Dzagnidze, Nana"]
[Result "0-1"]
[ECO "E48"]
[WhiteElo "2415"]
[BlackElo "2506"]
[Annotator "TA"]
[PlyCount "66"]
[EventDate "2024.06.13"]
[EventType "tourn"]
[EventCountry "USA"]
[SourceTitle "playchess.com"]
[Source "ChessBase"]
[SourceQuality "1"]
[TimeControl "40/5400+30:1800+30"]

{[%evp 13,66,-2,0,0,6,-8,0,-5,0,0,12,11,74,75,70,77,160,10,20,7,39,50,47,18,56,41,127,133,203,104,71,43,56,27,13,42,23,-62,-46,-20,-53,-59,-56,-484,-476,-756,-607,-853,-840,-853,-860,-857,-860,-839,-831]} 1. d4 {[%emt 0:00:00]} Nf6 {[%emt 0:00:00]} 2. c4 {[%emt 0:00:00]} e6 {[%emt 0:00:00]} 3. Nc3 {[%emt 0:00:00]} Bb4 {[%emt 0:00:00]} 4. e3 {[%emt 0:00:00]} O-O {[%emt 0:00:00]} 5. Bd3 {[%emt 0:00:00]} d5 {[%emt 0:00:00]} 6. cxd5 {[%emt 0:00:00]} exd5 {[%emt 0:00:00]} 7. Nge2 {[%emt 0:00:00]} b6 {[%emt 0:00:00]} 8. O-O {[%emt 0:00:00]} Re8 {[%emt 0:00:00]} 9. Bd2 {[%emt 0:00:00]} Bf8 {[%emt 0:00:00]} 10. Nf4 {[%emt 0:00:00] The position is equal.} Bb7 {[%emt 0:00:00]} 11. Qf3 {[%emt 0:00:00]} c5 {[%emt 0:00:53]} 12. Rfd1 {[%emt 0:00:00]} Nc6 {[%emt 0:02:58]} (12... cxd4 $11 13. exd4 Nc6) 13. Nfxd5 $16 {[%emt 0:15:25]} Nxd5 {[%emt 0:00:28]} 14. Nxd5 {[%emt 0:00:36]} cxd4 {[%emt 0:10:44] [#]} (14... Nxd4 $142 15. Nf6+ Qxf6 16. Qxb7 Ne6) 15. Qh3 $1 {[%emt 0:14:51]} g6 $1 $11 {[%emt 0:30:39]} 16. e4 {[%emt 0:00:38]} Bg7 {[%emt 0:00:08]} 17. Rac1 {[%emt 0:04:37]} Rc8 {[%emt 0:01:34]} 18. Qg3 {[%emt 0:04:27]} Qd7 {[%emt 0:08:06]} (18... Ne5 $6 19. Bb5 Rxc1 20. Rxc1 $16) 19. Bg5 {[%emt 0:04:28]} Re6 {[%emt 0:00:18]} ({Black should play} 19... Ne5 $14) 20. f4 $16 {[%emt 0:10:34][%cal Bf2f4,Bf4f5][%mdl 32]} Qd6 {[%emt 0:26:31]} (20... h6 $16) 21. Qh3 {[%emt 0:02:48]} (21. Qh4 $18) 21... Rce8 {[%emt 0:01:48]} 22. f5 {[%emt 0:15:33]} (22. Re1 {simplifies} Bc8 23. Qf3 Bb7 24. Bh4) 22... Rxe4 {[%emt 0:00:47]} 23. Bxe4 {[%emt 0:00:08]} Rxe4 {[%emt 0:00:01] [#]} 24. Nc3 {[%emt 0:03:06]} Re8 {[%emt 0:00:12]} 25. Qf3 {[%emt 0:13:01]} (25. Nb5 $11 Qb4 26. fxg6 hxg6 27. Qd7) 25... gxf5 {[%emt 0:03:41] And now ...Qg6 would win.} 26. Nb5 {[%emt 0:05:23]} Qg6 {[%emt 0:00:19][%cal Oc6d8]} 27. Bf4 $1 {[%emt 0:01:04]} Re4 {[%emt 0:00:14] aiming for ...Nd8.} 28. Bg3 $2 {[%emt 0:04:26][%mdl 8192]} ({But not} 28. Nd6 $2 Ne5 29. Bxe5 Re1+ 30. Rxe1 Bxf3 31. Rc8+ Bf8 $19) (28. Qg3 $1 $15) 28... Ne5 $19 {[%emt 0:04:27] Black is clearly winning.} 29. Bxe5 {[%emt 0:03:23]} (29. Qf1 $142 f4 30. Bf2) 29... Bxe5 {[%emt 0:00:18]} 30. Nxd4 {[%emt 0:00:25] [#]} Re1+ $3 {[%emt 0:03:15][%mdl 512]} 31. Rxe1 {[%emt 0:00:31]} Bxd4+ {[%emt 0:00:06] A strong pair of Bishops.} ({Not} 31... Bxf3 32. Nxf3 Bxb2 33. Rc2 $17) 32. Kh1 {[%emt 0:00:33]} Bxf3 {[%emt 0:00:06]} 33. gxf3 {[%emt 0:00:04]} Qh5 {[%emt 0:00:20] What a bad dream for White.   Weighted Error Value: White=0.60/Black=0.19 (very precise) .  Loses game:     	White=1     	---        Mistake:       	White=4     	Black=4      Inaccurate:     	White=3     	Black=2      OK:         	White=6     	Black=5      Best:        	White=1     	Black=1      Strong:       	White=1     	Black=1      Brilliant:      	White=1     	---} ({Weaker is} 33... Bxb2 34. Rc8+ Kg7 35. Rg1 $11) 0-1

[Event "Cairns Cup 2024"]
[Site "Saint Louis"]
[Date "2024.06.20"]
[Round "7.3"]
[White "Zatonskih, Anna"]
[Black "Kosteniuk, Alexandra"]
[Result "0-1"]
[ECO "D12"]
[WhiteElo "2327"]
[BlackElo "2501"]
[Annotator "TA"]
[PlyCount "84"]
[EventDate "2024.06.13"]
[EventType "tourn"]
[EventCountry "USA"]
[SourceTitle "playchess.com"]
[Source "ChessBase"]
[SourceQuality "1"]
[TimeControl "40/5400+30:1800+30"]

{[%evp 22,84,9,9,10,19,19,10,59,54,58,25,75,82,87,60,57,49,155,151,151,71,88,108,101,95,99,22,161,169,181,186,193,197,493,0,0,-21,-10,-94,-35,-697,-671,-699,-683,-707,-707,-690,-697,-686,-665,-836,-813,-787,-776,-12796,-12796,-5297,-908,-5691,-5629,-29996,-29997,-29997,-29998]} 1. d4 {[%emt 0:00:00]} d5 {[%emt 0:00:00]} 2. c4 {[%emt 0:00:00]} c6 {[%emt 0:00:00]} 3. e3 {[%emt 0:00:00]} Nf6 {[%emt 0:00:00]} 4. Nc3 {[%emt 0:00:00]} Bf5 {[%emt 0:00:00]} 5. Bd3 {[%emt 0:00:00]} Bxd3 {[%emt 0:00:00]} 6. Qxd3 {[%emt 0:00:00]} e6 {[%emt 0:00:00]} 7. Nf3 {[%emt 0:00:00]} Nbd7 {[%emt 0:00:00]} 8. O-O {[%emt 0:00:00]} Bd6 {[%emt 0:00:00]} 9. e4 {[%emt 0:00:00]} dxe4 {[%emt 0:00:00]} 10. Nxe4 {[%emt 0:00:00]} Nxe4 {[%emt 0:00:00]} 11. Qxe4 {[%emt 0:00:00]} O-O {[%emt 0:00:00]} 12. Bg5 {[%emt 0:09:59]} Nf6 {[%emt 0:00:00]} 13. Qe2 {[%emt 0:08:39]} h6 {[%emt 0:16:59]} 14. Bh4 {[%emt 0:01:46]} c5 {[%emt 0:02:48]} (14... g5 $11 {is more appropriate.} 15. Bg3 Bxg3 16. hxg3 (16. fxg3 g4 $11) 16... g4) 15. Rad1 $14 {[%emt 0:12:39] Black must now prevent dxc5.} Qe7 {[%emt 0:00:32]} 16. Rd3 {[%emt 0:22:25]} Rfd8 {[%emt 0:03:45]} (16... cxd4 $11 {remains equal.} 17. Nxd4 Rac8) 17. d5 $1 $16 {[%emt 0:17:41]} Re8 {[%emt 0:42:51]} 18. Qd1 {[%emt 0:08:33]} e5 {[%emt 0:08:19]} 19. Re1 {[%emt 0:01:31]} g5 {[%emt 0:00:26] [#]} ({Black should try} 19... e4 $14 20. Rde3 Qd7) 20. Nxg5 $1 {[%emt 0:04:28][%mdl 512]} hxg5 {[%emt 0:00:05]} 21. Bxg5 {[%emt 0:00:02]} e4 {[%emt 0:00:09]} 22. Rh3 {[%emt 0:01:11] Against Qd7. Threatens to win with f4.} Qe5 {[%emt 0:02:46]} 23. f4 $1 {[%emt 0:02:44]} Qf5 {[%emt 0:00:07] [#]} (23... Qxb2 $2 24. Re2 Be5 25. Rxb2 (25. fxe5 Qxe5 26. Rg3 Nh5 $18) 25... Bxb2 26. d6 $18) 24. g4 {[%emt 0:02:04]} (24. Ree3 $1 $16 {[%cal Re3g3] Reg3 would now be deadly.} Kf8 (24... Bxf4 $2 25. Bxf4 Qxf4 26. Reg3+ Kf8 27. d6 $18) 25. Reg3) 24... Qxg4+ {[%emt 0:04:21]} (24... Nxg4 $11 {and Black is okay.} 25. Rg3 f6) 25. Rg3 $18 {[%emt 0:00:05][%cal Og5f6]} Qxd1 {[%emt 0:00:17]} 26. Bxf6+ {[%emt 0:00:09]} Kh7 {[%emt 0:00:59]} 27. Rxd1 {[%emt 0:00:36][%cal Of4f5] f5! is the strong threat.} e3 $2 {[%emt 0:01:12] [#]} (27... Bxf4 28. Rg7+ Kh6) 28. Rf3 $2 {[%emt 0:05:23]} (28. f5 $1 $18 {Rh3+ would kill now.} Rg8 (28... Bxg3 $2 29. hxg3 Rg8 30. Kg2 $18) 29. Kg2) 28... Kg6 $11 {[%emt 0:03:06]} 29. Bc3 {[%emt 0:01:27]} Kf5 {[%emt 0:04:52][%cal Of5e4]} 30. Be5 {[%emt 0:01:09]} Ke4 {[%emt 0:01:00]} ({Black should play} 30... Bxe5 $17 31. fxe5+ Ke4 32. Rxf7 Rxe5) 31. Rff1 $2 {[%emt 0:02:18][%mdl 8192]} (31. Rxe3+ $15 Kxe3 32. Bxd6) 31... Bxe5 $19 {[%emt 0:03:18]} 32. fxe5 {[%emt 0:00:01]} Rxe5 {[%emt 0:03:37]} 33. Rxf7 {[%emt 0:00:02][%cal Og1f1][%mdl 4096] Endgame. KRR-KRR} e2 {[%emt 0:00:15]} 34. Ra1 {[%emt 0:02:02]} Ke3 {[%emt 0:00:13] Hoping for ...Rg8+.} 35. Rg7 {[%emt 0:00:12]} Kd2 {[%emt 0:00:17]} 36. Rg2 {[%emt 0:00:04]} Rf8 {[%emt 0:00:24] aiming for ...Ref5.} 37. h4 {[%emt 0:01:06]} Ref5 {[%emt 0:00:14]} 38. d6 {[%emt 0:00:36]} Rf1+ {[%emt 0:01:10]} 39. Rxf1 {[%emt 0:00:03]} Rxf1+ {[%emt 0:00:05]} 40. Kh2 {[%emt 0:00:04]} Ke3 {[%emt 0:00:26]} 41. d7 {[%emt 0:30:26]} e1=Q {[%emt 0:30:20][%cal Re1h4]} (41... e1=R 42. d8=Q (42. d8=R Rh1+ 43. Kg3 Ref1 $11) 42... a5 43. Rg3+ (43. Qxa5 Kf3 44. Qa3+ Kf4 45. Qg3+ Ke4 46. Qg6+ Ke3 47. Qe6+ Kd3 48. Qd5+ Ke3) 43... Ke4 44. Qe8+ (44. Qxa5 Rf2+ 45. Rg2 Rxg2+ 46. Kxg2 Re2+ 47. Kg3 Re3+ 48. Kf2 Rf3+ 49. Kg2 Rf6 $18) 44... Kf4 45. Qf7+ Ke4 46. Qg6+ (46. Qxb7+ Ke5 47. Rg5+ Kf4 48. Qb8+ Kf3 49. Qb3+ Ke4 50. Qc2+ Kf4 51. Qf5+ Ke3) 46... Kf4 47. Rg4+ Kf3 48. Qf5+ Ke2 49. Qc2+ (49. Qxc5 Rh1+ 50. Kg2 Kd2 $18) 49... Kf3 50. Qg2+ (50. Qf5+ Ke2 51. Rg2+ Ke3 52. Qxc5+ Ke4 53. Qd5+ Kf4 54. Qd6+ Ke3 55. Rg3+ Rf3) 50... Ke3 51. Qe4+ (51. Qxb7 Rf2+ 52. Rg2 Rxg2+ 53. Kxg2 Re2+ 54. Kg3 Kd2 $18) 51... Kd2 52. Rg2+ (52. Qxb7 Kc1 $18) (52. Qxb7 Kc1 $18)) 42. Rg3+ {[%emt 0:00:24]} Kf4 {[%emt 0:00:12]} 0-1

[Event "Cairns Cup 2024"]
[Site "Saint Louis"]
[Date "2024.06.20"]
[Round "7.4"]
[White "Muzychuk, Mariya"]
[Black "Lee, Alice"]
[Result "1-0"]
[ECO "D27"]
[WhiteElo "2510"]
[BlackElo "2368"]
[Annotator "TA"]
[PlyCount "75"]
[EventDate "2024.06.13"]
[EventType "tourn"]
[EventCountry "USA"]
[SourceTitle "playchess.com"]
[Source "ChessBase"]
[SourceQuality "1"]
[TimeControl "40/5400+30:1800+30"]

{[%evp 15,75,5,6,3,-3,0,10,8,11,10,0,11,16,12,8,0,0,0,93,95,93,100,103,108,210,144,272,238,257,227,234,217,292,296,338,274,260,264,313,297,407,396,430,433,469,474,502,477,669,662,622,607,735,727,746,711,671,521,6245,1678,1172,1083]} 1. c4 {[%emt 0:00:00]} e6 {[%emt 0:00:00]} 2. Nf3 {[%emt 0:00:00]} d5 {[%emt 0:00:00]} 3. d4 {[%emt 0:00:00]} dxc4 {[%emt 0:00:00]} 4. e3 {[%emt 0:00:00]} Nf6 {[%emt 0:00:00]} 5. Bxc4 {[%emt 0:00:00]} a6 {[%emt 0:00:00]} 6. O-O {[%emt 0:00:00]} c5 {[%emt 0:00:00]} 7. Nc3 {[%emt 0:00:00]} b5 {[%emt 0:00:00]} 8. Bb3 {[%emt 0:00:00]} Bb7 {[%emt 0:00:00] [#]} 9. e4 $1 {[%emt 0:00:00]} cxd4 {[%emt 0:00:00]} 10. Nxd4 {[%emt 0:00:00] Threatens to win with e5.} Nc6 {[%emt 0:00:00]} 11. Nxc6 {[%emt 0:00:00] The position is equal.} Qxd1 {[%emt 0:00:00]} 12. Rxd1 {[%emt 0:00:00]} Bxc6 {[%emt 0:00:00]} 13. f3 {[%emt 0:00:00]} Bc5+ {[%emt 0:00:00]} 14. Kf1 {[%emt 0:00:00]} Ke7 {[%emt 0:00:00]} 15. e5 {[%emt 0:00:00]} Nd7 {[%emt 0:00:00]} 16. Bg5+ {[%emt 0:00:00]} f6 {[%emt 0:00:00]} (16... Ke8 $11 {keeps the balance.}) 17. exf6+ $16 {[%emt 0:00:00] White leaves nothing to chance now.} gxf6 {[%emt 0:00:00] [#]} 18. Re1 $1 {[%emt 0:00:00] White is more active.} e5 {[%emt 0:00:00] [#]} 19. Bh4 {[%emt 0:00:00]} Kd8 {[%emt 0:28:07]} (19... Rhc8 $16 {was worth a try.}) 20. Rxe5 {[%emt 0:05:58]} Kc7 {[%emt 0:26:34]} (20... Nxe5 $16 {might work better.} 21. Bxf6+ Kc7 22. Bxe5+ Bd6 23. Bxh8 Rxh8) 21. Re6 {[%emt 0:03:24][%cal Ob3d5] Hoping for Bd5!} Rae8 {[%emt 0:02:28]} 22. Rae1 {[%emt 0:15:06]} (22. Bxf6 Rxe6 23. Bxh8 Re8 $18) 22... Rxe6 {[%emt 0:01:20]} 23. Rxe6 {[%emt 0:05:00]} (23. Bxe6 b4) 23... Bd4 {[%emt 0:00:55]} 24. Bd5 {[%emt 0:11:02]} Ba8 {[%emt 0:09:11]} 25. Bxa8 {[%emt 0:08:07]} (25. Rxa6 Bxc3 26. Bxa8 (26. Rxa8 Rxa8 27. Bxa8 Bxb2 $18) 26... Bxb2 $18) 25... Rxa8 {[%emt 0:00:03]} 26. Nd5+ {[%emt 0:00:30]} Kd8 {[%emt 0:05:51]} 27. Nxf6 {[%emt 0:03:49]} ({Don't take} 27. Bxf6+ Nxf6 28. Nxf6 Kc8 $18) 27... Bxf6 {[%emt 0:08:37]} 28. Bxf6+ $18 {[%emt 0:00:07][%mdl 4096] Endgame. KRB-KRN} Kc7 {[%emt 0:00:06]} 29. Bc3 {[%emt 0:00:23] White is clearly winning.} a5 {[%emt 0:01:13]} 30. a3 {[%emt 0:01:14]} Nc5 {[%emt 0:00:22]} 31. Rh6 {[%emt 0:02:04]} b4 {[%emt 0:01:51]} (31... Na4 $142 32. Be5+ (32. Rxh7+ Kc6 $18) 32... Kd7 33. Rxh7+ Ke6) 32. axb4 {[%emt 0:01:50]} axb4 {[%emt 0:00:14]} 33. Bxb4 {[%emt 0:00:20]} Nd3 {[%emt 0:00:07]} 34. Bc3 {[%emt 0:00:34]} Kd7 {[%emt 0:00:52]} 35. Rxh7+ {[%emt 0:00:36]} Ke6 {[%emt 0:00:02]} 36. g3 {[%emt 0:01:49]} Kf5 {[%emt 0:00:40]} 37. Rd7 {[%emt 0:01:46] aiming for Rd5+.} Ra1+ {[%emt 0:00:40]} 38. Ke2 {[%emt 0:00:34] Weighted Error Value: White=0.17 (very precise) /Black=0.40.  Mistake:       	---       	Black=4      Inaccurate:     	White=1     	Black=2      OK:         	White=11    	Black=8      Best:        	White=1     	Black=1      Strong:       	White=1     	---} 1-0

[Event "Cairns Cup 2024"]
[Site "Saint Louis"]
[Date "2024.06.20"]
[Round "7.5"]
[White "Muzychuk, Anna"]
[Black "Dronavalli, Harika"]
[Result "1/2-1/2"]
[ECO "C60"]
[WhiteElo "2505"]
[BlackElo "2489"]
[Annotator "TA"]
[PlyCount "87"]
[EventDate "2024.06.13"]
[EventType "tourn"]
[EventCountry "USA"]
[SourceTitle "playchess.com"]
[Source "ChessBase"]
[SourceQuality "1"]
[TimeControl "40/5400+30:1800+30"]

{[%evp 9,87,28,29,24,22,19,48,39,42,58,40,47,51,57,61,52,38,42,39,37,58,45,45,43,54,42,57,34,54,41,48,46,41,33,36,37,39,41,110,113,88,94,90,82,91,90,90,83,91,110,108,79,88,91,78,90,117,92,151,156,155,142,241,230,235,141,148,27,7,0,0,0,0,0,0,0,0,0,0,0]} 1. e4 {[%emt 0:00:00]} e5 {[%emt 0:00:00]} 2. Nf3 {[%emt 0:00:00]} Nc6 {[%emt 0:00:00]} 3. Bb5 {[%emt 0:00:00][%cal Bf1b5,Bb5a4,Ba4b3][%mdl 32]} a6 {[%emt 0:00:00]} 4. Ba4 {[%emt 0:00:00]} Nge7 {[%emt 0:00:00]} 5. O-O {[%emt 0:00:00]} Ng6 {[%emt 0:00:00]} 6. d4 {[%emt 0:00:00]} exd4 {[%emt 0:00:00]} 7. Nxd4 {[%emt 0:00:00]} Nxd4 {[%emt 0:00:00]} 8. Qxd4 {[%emt 0:00:00] White is slightly better.} b5 {[%emt 0:00:00]} 9. Bb3 {[%emt 0:00:00]} Bb7 {[%emt 0:00:00] Wards off Qd5. ...c5 is the strong threat.} 10. Rd1 {[%emt 0:00:00]} Qe7 {[%emt 0:00:00][%cal Oc7c5]} 11. c4 {[%emt 0:00:00]} (11. Qd3 {looks sharper.} Bxe4 12. Qg3 Bc6 13. Qxc7 Qe4 14. Qg3) 11... Qd6 {[%emt 0:00:00]} 12. Qxd6 {[%emt 0:00:00]} Bxd6 {[%emt 0:00:00]} 13. Nc3 {[%emt 0:00:00]} Bc6 {[%emt 0:13:22]} 14. Be3 {[%emt 0:00:00]} Be5 {[%emt 0:07:47]} 15. Bd4 {[%emt 0:01:14]} Bxd4 {[%emt 0:11:08]} 16. Rxd4 {[%emt 0:00:07]} Nf4 {[%emt 0:00:40][%cal Bg6f4,Bf4e6,Be6d8][%mdl 32]} 17. cxb5 {[%emt 0:09:11]} axb5 {[%emt 0:02:18]} 18. Rad1 {[%emt 0:02:09]} O-O {[%emt 0:03:48]} 19. Rb4 {[%emt 0:06:13][%cal Oc3d5]} Rfb8 {[%emt 0:06:13]} 20. Nd5 {[%emt 0:12:48]} Ne6 {[%emt 0:07:30]} 21. Rc1 {[%emt 0:04:35]} Kf8 {[%emt 0:00:49] Inhibits Ne7.} 22. f4 {[%emt 0:01:46]} Ra7 {[%emt 0:06:59]} 23. f5 {[%emt 0:02:49]} Bxd5 {[%emt 0:02:08]} ({Black should play} 23... Nd8 $1 $14) 24. exd5 $16 {[%emt 0:00:59]} Nd8 {[%emt 0:00:03] [#]} 25. f6 $1 {[%emt 0:11:10]} gxf6 {[%emt 0:06:00]} 26. Rh4 {[%emt 0:00:58]} c6 {[%emt 0:04:13]} 27. Rxh7 {[%emt 0:09:29]} cxd5 {[%emt 0:01:39]} 28. Bxd5 {[%emt 0:11:25]} Ke7 {[%emt 0:03:02]} 29. Rh8 $36 {[%emt 0:03:19][%mdl 2048] White is really pushing. White is much more active.} Rb6 {[%emt 0:00:16]} 30. h4 {[%emt 0:02:06][%cal Bh2h4,Bh4h5,Bh5h6][%mdl 32]} Ra4 {[%emt 0:05:57]} 31. Re1+ {[%emt 0:03:30]} Ne6 {[%emt 0:00:05]} 32. Be4 {[%emt 0:01:02]} Rd6 {[%emt 0:04:49][%cal Od6d4]} 33. h5 $1 {[%emt 0:04:36] aiming for h6.} Rdd4 {[%emt 0:05:54]} (33... f5 $142 34. Bxf5 Kf6) 34. Bf5 $1 {[%emt 0:02:26] Hoping for h6.} (34. Bb1 $6 Rd2 $11) 34... Rd5 {[%emt 0:02:25]} 35. g4 {[%emt 0:07:02] Threatens to win with h6.} Kd6 {[%emt 0:00:05] [#]} (35... Re5 $16 36. Rxe5 fxe5) 36. h6 $1 $18 {[%emt 0:01:32]} Ng5 {[%emt 0:02:37]} 37. Rd8 {[%emt 0:06:18]} Kc7 {[%emt 0:01:54] [#]} 38. Rg8 {[%emt 0:00:54]} ({Don't go for} 38. h7 $2 Nxh7 39. Rh8 Ng5 40. Rc1+ Kd6 $19) ({But not} 38. Ree8 $6 Rd2 39. Rc8+ Kb6 $11) ({White must play} 38. Rde8 $1 $16) 38... Rd2 $1 $11 {[%emt 0:02:12] Prevents Re2} (38... Nf3+ 39. Kf2 Ng5 40. Kg3 $18) 39. h7 {[%emt 0:01:23] The position is equal.} (39. Rf1 $5) 39... Nf3+ $1 {[%emt 0:01:03]} 40. Kf1 {[%emt 0:00:00]} Nh2+ {[%emt 0:00:34]} 41. Kg1 {[%cal Oe1f1] Strongly threatening Rf1!} Nf3+ {[%emt 0:30:05]} 42. Kf1 {[%emt 0:30:03]} Nh2+ {[%emt 0:00:04]} 43. Kg1 {[%emt 0:00:03][%cal Oe1f1] Black must now prevent Rf1!} Nf3+ {[%emt 0:00:03]} 44. Kf1 {[%emt 0:00:04] Weighted Error Value: White=0.11 (very precise) /Black=0.09 (flawless) .  Mistake:       	White=1     	Black=3      Inaccurate:     	White=1     	Black=1      OK:         	White=12    	Black=13     Best:        	White=3     	Black=8      Strong:       	White=3     	Black=2} 1/2-1/2